Cogmind - Beta 11.1 @@@ ROGUE MODE // 2022.12.13 @ 13:52:55 Player: ILikeMonsters1890 Result: Destroyed by as-82562 with Assembled Heavy Rifle Performance ------------- Evolutions (0) 0 Regions Visited (4) 800 Robots Destroyed (30) 150 Value Destroyed (415) 415 Prototype IDs (0) 0 Alien Tech Used (0) 0 Bonus (2) 2 TOTAL SCORE: 1367 Bonus ------- High Alert Combat Kills 2 Cogmind --------- Core Integrity 0/250 Matter 285/300 Energy 111/125 System Corruption 0% Temperature Cool (1) Movement Flying (280) Ox3 Location -9/Mines Parts ------- > --- POWER (1) -------- Light Ion Engine > --- PROPULSION (2) --- Flight Unit > --- UTILITY (2) ------ Medium Storage Unit > --- WEAPON (2) ------- Mace > --- INVENTORY (10) --- Light Ion Engine Deuterium Engine Small Storage Unit Improved Light Armor Plating Rocket Launcher Mace Mace Peak State ------------ > --- POWER ------------ Ion Engine > --- PROPULSION ------- Wheel Wheel > --- UTILITY ---------- Medium Storage Unit Seismic Detector > --- WEAPON ----------- Mace Mace > --- INVENTORY -------- Light Ion Engine Light Ion Engine Flight Unit Flight Unit Flight Unit Flight Unit Flight Unit Small Storage Unit Sensor Array Small Laser [Rating: 10] Favorites ----------- Power Ion Engine Engine Ion Engine Propulsion Wheel Leg Aluminum Leg Wheel Wheel Flight Unit Flight Unit Utility Medium Storage Unit Device Seismic Detector Storage Medium Storage Unit Weapon Mace Energy Gun Small Laser Ballistic Gun Assault Rifle Impact Weapon Mace Build | -11 -10 -10 -10 -9 ------- Run | Scr Mat Min Exi Min Slots Evolved . | . . . . . Power . | . . . . . Propulsion . | . . . . . Utility . | . . . . . Weapon . | . . . . . Parts Attached 28 | 7 8 1 . 12 Power 3 | . 2 . . 1 Engine 3 | . 2 . . 1 Core . | . . . . . Reactor . | . . . . . Propulsion 16 | 5 2 . . 9 Treads . | . . . . . Leg . | . . . . . Wheel 11 | 5 2 . . 4 Hover . | . . . . . Flight 5 | . . . . 5 Utility 5 | 1 1 1 . 2 Device 2 | 1 . 1 . . Storage 3 | . 1 . . 2 Processor . | . . . . . Hackware . | . . . . . Protection . | . . . . . Artifact . | . . . . . Weapon 4 | 1 3 . . . Energy Gun 1 | . 1 . . . Energy Cannon . | . . . . . Ballistic Gun 1 | 1 . . . . Ballistic Cannon . | . . . . . Launcher . | . . . . . Special Weapon . | . . . . . Impact Weapon 2 | . 2 . . . Slashing Weapon . | . . . . . Piercing Weapon . | . . . . . Special Melee Weapon . | . . . . . Unidentified Prototypes . | . . . . . Parts Lost 11 | . 2 1 . 8 Power 1 | . 1 . . . Propulsion 6 | . . . . 6 Utility 2 | . . 1 . 1 Weapon 2 | . 1 . . 1 Highest Loss Streak 6 | . 2 1 . 6 To Critical Strikes . | . . . . . Average Slot Usage (%) 96 | . 97 99 100 90 Engine 13 | . 12 14 14 14 Wheel 25 | . 28 28 28 15 Device 13 | . 14 13 14 13 Storage 14 | . 14 14 14 14 Energy Gun 1 | . 3 . . . Ballistic Gun 5 | . 13 . . . Impact Weapon 21 | . 9 28 28 28 Naked Turns . | . . . . . Heaviest Build 20 | 13 20 20 20 20 Greatest Support 26 | 26 20 20 20 20 Greatest Overweight (x) 5 | . . . . 5 Average Overweight (x) . | . . . . . Largest Inventory Capacity 10 | 8 10 10 10 10 Average Capacity 9 | 8 9 10 10 9 Most Carried 10 | 6 10 10 10 10 Average Carried 8 | 3 8 9 10 9 Final Capacity 10 | 8 10 10 10 10 Final Carried 10 | 5 10 10 10 7 Class Distribution -------------------- 70% | Mutant 29% | Scavenger-Mutant Dominant Class ---------------- Scavenger-Mutant | -10/Materials Scavenger-Mutant | -10/Mines Mutant | -10/Exiles Mutant | -9/Mines Resources | -11 -10 -10 -10 -9 ----------- Run | Scr Mat Min Exi Min Matter Collected 689 | 330 259 10 . 90 Remotely . | . . . . . Salvage Created 765 | 142 485 42 . 96 Parts 42 | 12 30 . . . Haulers Intercepted 1 | . 1 . . . Recyclers Shooed 1 | 1 . . . . Parts Field Recycled . | . . . . . Retrieved Matter . | . . . . . Parts Self-Destructed . | . . . . . Prevented . | . . . . . Kills | -11 -10 -10 -10 -9 ------- Run | Scr Mat Min Exi Min Combat Hostiles Destroyed 19 | . 13 . . 6 Melee 5 | . 1 . . 4 Guns 10 | . 10 . . . Classes Destroyed 9 | 2 5 . . 2 Worker 4 | . 1 3 . . Tunneler 6 | 5 . . . 1 Hauler 1 | . 1 . . . Recycler 2 | 1 1 . . . Watcher 2 | . 2 . . . Swarmer 9 | . 9 . . . Grunt 5 | . 4 . . 1 Demolisher 1 | . . . . 1 Assembled 4 | . . . . 4 Best Kill Streak 9 | 4 9 2 . 3 Combat Bots Only 9 | . 9 . . 3 Max Kills in Single Turn 1 | 1 1 1 . 1 Gunslinging . | . . . . . Exploded . | . . . . . Melee 1 | . 1 . . 1 Uniques/NPCs Destroyed . | . . . . . Combat | -11 -10 -10 -10 -9 -------- Run | Scr Mat Min Exi Min Damage Taken 1289 | . 512 74 . 703 Core 259 | . 77 11 . 171 Absorbed by Shields . | . . . . . Core Remaining (%) 100 | 100 . . . . Volleys Fired 50 | 10 40 . . . Largest 2 | 2 2 . . . Hottest 60 | 40 60 . . . Shots Fired 89 | 20 69 . . . Gun 89 | 20 69 . . . Cannon . | . . . . . Launcher . | . . . . . Special . | . . . . . Kinetic 83 | 20 63 . . . Thermal 6 | . 6 . . . Explosive . | . . . . . Electromagnetic . | . . . . . Robot Hit Streak 13 | 5 13 . . . Robot Miss Streak 3 | 1 3 . . . Penetration Max . | . . . . . Secondary Targets 2 | . 2 . . . Max Gunslinging Chain 1 | . 1 . . . Shots Hit Robots 89 | 14 58 5 . 12 Core Hits 28 | 6 21 . . 1 Critical Kills . | . . . . . Critical Parts Destroyed 6 | . 2 . . 4 Critical Strikes 6 | . 2 . . 4 Destroy 1 | . 1 . . . Smash 5 | . 1 . . 4 Melee Attacks 34 | . 15 6 . 13 Impact 34 | . 15 6 . 13 Slashing . | . . . . . Piercing . | . . . . . Sneak Attacks 5 | . . 3 . 2 Combat Hostiles 1 | . . . . 1 Follow-up Attacks 3 | . 2 . . 1 Damage Inflicted 1788 | 177 840 295 . 476 Guns 812 | 177 635 . . . Cannons . | . . . . . Explosions . | . . . . . Melee 976 | . 205 295 . 476 Ramming . | . . . . . Kinetic 756 | 177 579 . . . Thermal 56 | . 56 . . . Explosive . | . . . . . Electromagnetic . | . . . . . Impact 976 | . 205 295 . 476 Slashing . | . . . . . Piercing . | . . . . . Highest Corruption . | . . . . . Average Corruption . | . . . . . Corruption Purged . | . . . . . Corruption Blocked . | . . . . . Overload Shots . | . . . . . Overflow Damage 385 | . 41 142 . 202 Projectiles . | . . . . . Explosions . | . . . . . Melee 385 | . 41 142 . 202 Knockbacks 3 | . 2 1 . . Impact 3 | . 2 1 . . Kinetic . | . . . . . Secondary . | . . . . . Self-Inflicted Damage . | . . . . . Shots . | . . . . . Rammed . | . . . . . Targets Rammed . | . . . . . Kicked . | . . . . . Crushed . | . . . . . Highest Temperature 5 | . 5 . . 2 Average Temperature 3 | . 5 . . 2 Received Heat Transfer 266 | . 126 42 . 98 Siege Activations . | . . . . . Robots Corrupted . | . . . . . Combat Hostiles . | . . . . . Parts Fried 8 | . 2 4 . 2 Impact Corruptions 19 | . 5 5 . 9 Robots Melted . | . . . . . Combat Hostiles . | . . . . . Parts Melted . | . . . . . Heat Transferred 125 | . 125 . . . Parts Sabotaged . | . . . . . Parts Stolen . | . . . . . Parts Stripped . | . . . . . Power Chain Reactions . | . . . . . Missiles Intercepted . | . . . . . Alert | -11 -10 -10 -10 -9 ------- Run | Scr Mat Min Exi Min Peak Influence 460 | 30 460 119 . 35 Initial 109 | . 19 109 . . Average 138 | 16 258 114 . 16 Maximum Alert Level 2 | . 2 . . . Low Security (%) 63 | 100 15 100 . 100 Level 1 32 | . 75 . . . Level 2 4 | . 9 . . . Level 3 . | . . . . . Level 4 . | . . . . . Level 5 . | . . . . . High Security . | . . . . . Max Security . | . . . . . Squads Dispatched 4 | . 3 1 . . Investigation 3 | . 2 1 . . Extermination . | . . . . . Reinforcement 1 | . 1 . . . Assault . | . . . . . Garrison . | . . . . . Intercept . | . . . . . Searches Triggered . | . . . . . Construction Impeded . | . . . . . Haulers Reinforced . | . . . . . Active Scanning Responses . | . . . . . Cargo Convoy Interrupts . | . . . . . Stealth | -11 -10 -10 -10 -9 --------- Run | Scr Mat Min Exi Min Distress Signals 1 | . 1 . . . Communications Jammed . | . . . . . Distress Signals . | . . . . . Times Spotted 44 | . 22 2 . 20 Peak Tracking Total 7 | . 6 2 . 7 Tactical Retreats 6 | . 2 . . 4 Traps | -11 -10 -10 -10 -9 ------- Run | Scr Mat Min Exi Min Traps Triggered 2 | . 2 . . . Indirectly . | . . . . . Trap Hack Attempts . | . . . . . Triggered . | . . . . . Disarmed . | . . . . . Reprogrammed . | . . . . . Reused . | . . . . . Traps Extracted . | . . . . . Installed . | . . . . . Triggered . | . . . . . Machines | -11 -10 -10 -10 -9 ---------- Run | Scr Mat Min Exi Min Machines Disabled 1 | . 1 . . . Max in Single Turn 1 | . 1 . . . Machines Sabotaged . | . . . . . Garrisons Compromised . | . . . . . Overloaded Fab Kills . | . . . . . Hacking | -11 -10 -10 -10 -9 --------- Run | Scr Mat Min Exi Min Machines Accessed 9 | . 4 1 4 . Terminals 2 | . 2 . . . Fabricators . | . . . . . Repair Stations . | . . . . . Recycling Units 2 | . 2 . . . Scanalyzers . | . . . . . Garrison Access . | . . . . . Total Hacks 14 | . 9 1 4 . Successful 12 | . 7 1 4 . Failed 2 | . 2 . . . Catastrophic . | . . . . . Database Lockouts . | . . . . . Manual 5 | . 4 . 1 . Terminals 7 | . 7 . . . Fabricators . | . . . . . Repair Stations . | . . . . . Recycling Units 2 | . 2 . . . Scanalyzers . | . . . . . Garrison Access . | . . . . . Terminal Hacks 9 | . 4 1 4 . Record 4 | . . . 4 . Robot Analysis 2 | . 2 . . . Open Door 1 | . . 1 . . Registered Prototypes 1 | . 1 . . . Zone Layout 1 | . 1 . . . Fabricator Hacks . | . . . . . Repair Station Hacks . | . . . . . Recycling Unit Hacks 2 | . 2 . . . Retrieve Components 2 | . 2 . . . Scanalyzer . | . . . . . Garrison Access Hacks . | . . . . . Unauthorized Hacks 1 | . 1 . . . Terminals 1 | . 1 . . . Botnet 1 | . 1 . . . Fabricators . | . . . . . Repair Stations . | . . . . . Recycling Units . | . . . . . Scanalyzers . | . . . . . Garrison Access . | . . . . . Data Cores Recovered . | . . . . . Used . | . . . . . Hacking Detections 2 | . 2 . . . Full Trace Events . | . . . . . Feedback Events . | . . . . . Feedback Blocked . | . . . . . Robot Schematics Acquired . | . . . . . Robots Built . | . . . . . Authchips . | . . . . . Time . | . . . . . Total Robot Build Rating . | . . . . . Part Schematics Acquired . | . . . . . Parts Built . | . . . . . Authchips . | . . . . . Time . | . . . . . Total Part Build Rating . | . . . . . Parts Repaired . | . . . . . Time . | . . . . . Parts Recycled . | . . . . . Recycled Matter . | . . . . . Retrieved Matter . | . . . . . Retrieved Components 4 | . 4 . . . Parts Scanalyzed . | . . . . . Part Schematics Acquired . | . . . . . Parts Damaged . | . . . . . Bothacking | -11 -10 -10 -10 -9 ------------ Run | Scr Mat Min Exi Min Used RIF Installer . | . . . . . Robots Hacked . | . . . . . Non-combat . | . . . . . Combat . | . . . . . Robot Hacks Applied . | . . . . . Relay Couplers Released . | . . . . . Fabnet Peak Effective % . | . . . . . Robots Rewired . | . . . . . Allies Hacked . | . . . . . Hacks Repelled . | . . . . . Allies | -11 -10 -10 -10 -9 -------- Run | Scr Mat Min Exi Min Total Allies 2 | . . . . 2 Largest Group 2 | . . . . 2 Highest-Rated Group 49 | . . . . 49 Highest-Rated Ally 31 | . . . . 31 Total Orders . | . . . . . Ally Attacks 6 | . . . . 6 Total Damage 104 | . . . . 104 Kills 1 | . . . . 1 Allies Corrupted . | . . . . . Allies Melted . | . . . . . Intel | -11 -10 -10 -10 -9 ------- Run | Scr Mat Min Exi Min Robot Analysis Total 2 | . 2 . . . Derelict Logs Recovered 2 | . . 2 . . Drone Launches . | . . . . . Drone Recoveries . | . . . . . Exploration | -11 -10 -10 -10 -9 ------------- Run | Scr Mat Min Exi Min Turns Passed 1387 | 118 472 192 297 308 Spaces Moved 1246 | 61 352 212 372 249 Core 1 | . . . . 1 Treads . | . . . . . Legs . | . . . . . Wheels 1226 | 61 352 212 372 229 Hover . | . . . . . Flight 19 | . . . . 19 Fastest Speed 80 | 80 80 80 80 80 Average Speed 82 | 80 80 80 80 93 Slowest Speed 300 | 90 80 80 80 300 Overloaded Moves . | . . . . . Propulsion Burnouts . | . . . . . Robots Hopped . | . . . . . Cave-ins Triggered . | . . . . . Exploration Rate (%) 43 | 4 56 44 70 42 Regions Visited 4 Branch Regions 3 Pre-discovered Areas . | . . . . . Known Exits Taken . | . . . . . Unknown Exits Taken 4 | 1 1 1 1 . Scrap Searched 1 | . . . . 1 Spaces Dug 2 | . 2 . . . Terrain Destroyed 2 | . 2 . . . Melee 2 | . 2 . . . Projectile . | . . . . . AOE . | . . . . . Terrain Rammed . | . . . . . Walls Destroyed . | . . . . . Machines Disabled . | . . . . . Actions | -11 -10 -10 -10 -9 --------- Run | Scr Mat Min Exi Min Total 1464 | 109 455 224 371 305 Wait 58 | 19 13 3 . 23 Move 1242 | 60 351 211 371 249 Hop . | . . . . . Pick Up 28 | 6 17 2 . 3 Fast Attach 4 | 1 1 . . 2 Attach 7 | . 1 1 . 5 Detach 1 | . . . . 1 Swap 17 | 6 6 . . 5 Drop 26 | 7 13 1 . 5 Fire 50 | 10 40 . . . Melee 31 | . 13 6 . 12 Ram . | . . . . . Kick . | . . . . . Crush . | . . . . . Escape Stasis . | . . . . . Rewire . | . . . . . Trap . | . . . . . Miscellaneous . | . . . . . Route ------- -11/Scrapyard -10/Materials (discovered 2 exits: [Mat] / *Min) -10/Mines (discovered 2 exits: [*Mat] / *Exi) -10/Exiles (discovered 2 exits: [*Min x2]) -9/Mines History --------- Turn | Location | Event 11 | -11/Scrapyard | Discovered new exit (range 2) 119 | -11/Scrapyard | Entered Materials 240 | -10/Materials | Destroyed 9 combat bots 334 | -10/Materials | Discovered new exit (range 14) 541 | -10/Materials | Discovered new exit (range 16) 591 | -10/Materials | Entered Mines 594 | -10/Mines | Learned Materials emergency access door positions 601 | -10/Mines | Build established: Scavenger-Mutant 621 | -10/Mines | Met a Derelict bent on vengeance 687 | -10/Mines | Learned 4 Materials zone layouts 689 | -10/Mines | Discovered new exit (range 11) 703 | -10/Mines | Met a Derelict shopkeep closing up shop 780 | -10/Mines | Deemed a non-threat by the Exiles lab entrance 780 | -10/Mines | Discovered new exit (range 5) 783 | -10/Mines | Entered Exiles 783 | -10/Exiles | Found Exiles lab abandoned 795 | -10/Exiles | Discovered new exit (range 14) 915 | -10/Exiles | Discovered new exit (range 14) 1006 | -10/Exiles | Build established: Mutant 1080 | -10/Exiles | Entered Mines 1081 | -9/Mines | Assembled infested the area 1086 | -9/Mines | Assisted by a Guerilla fighting off Assembled 1185 | -9/Mines | Received a Rocket Launcher from a helpful Derelict 1375 | -9/Mines | Core integrity fell below 50% 1381 | -9/Mines | Core integrity fell below 20% 1388 | -9/Mines | Destroyed by as-82562 with Assembled Heavy Rifle Last Messages --------------- 01306_ as-25569 system corrupted by crushing effect. 01306_ as-25569 destroyed. 01308_ Destroyed Asb. Hover Unit. 01308_ as-03998 system corrupted by crushing effect. 01311_ Mace follow-up attack on as-03998. 01314_ as-03998 destroyed. 01323_ as-42156 suffers critical hit (Smash). 01323_ Destroyed Asb. Blade. 01323_ as-42156 system corrupted by crushing effect. 01323_ as-42156 destroyed. 01329_ Acquired Wheel. 01332_ Dropped Wheel. 01333_ Acquired 16 matter. 01334_ Acquired 4 matter. 01338_ Dropped Wheel. 01339_ Acquired 10 matter. 01372_ Sensor Array destroyed. 01378_ Wheel destroyed. 01387_ Flight Unit destroyed. 01387_ Mace destroyed. Map ----- +----------------------------------------------------+ | ???????????????????????????????????????????????? | | ???????????????????????????????????????????????? | | ???????????????????????????????????????????????? | | ???????????????????????????????????????????????# | | ??????????????????????????????????????????????## | | ????????????????? ???????????????????????????# | | ????????????????? ???????????????????????????# | | ????????????????? ???????????????????????????# | | ????????????????? #??????????????????????????## | | ????????????????? #???????????????????#???????# | | ????????????????# #??????????????????#"######## | | ????????????????# #?????????????????##% | | ????????????????#% #???????????????## #%### #### | | ????????????????#! #???????????????# % # #??? | | ????????????????# *#???????????????? ! # #??? | | ????????????????#[%#???????????????? =# ??? | | ????????????????# #????????????????# # ###??? | | ????????????????# *#????????????????# # #????? | | ?????###????????#!%#?????????????????# #?????? | | ?????# #???????# =#####?????????????? ??????? | | ?????# ##?????# ##?????????????# #??????? | | ?????# ###???# ##????????????# #??????? | | ??????# ##?## = #####????????#%#??????? | | ??????# ### a !%!= #????????# #??????? | | ?????## a aaa !%%=% #????????# #??????? | | ?????# a @##"%=#???????##=######## | | ?????# a ######%!#??????##!%! | | ?????# ## #######=%#?????## =%! | | ?????# #### ##% =%%#??#### =######### | | ?????## ##??## ###%####% #?## ##???????? | | ??????###?????## ##?#%#??# ###% ##????????? | | ???????????????####### ##?# =%! ##?????????? | | ????????????????# ! !#?# %% ##??????????? | | ??????####??????# %%"""*#?###### %##???????????? | | ?????## ##?????# =""" #??????##=#????????????? | | ????## ####### """ #???????# #????????????? | | ????# #???????# #????????????? | | ???## ####### #?####### #????????????? | | ??## #?????## ######?# #????????????? | | ??# #??????# #??????# ##### #?????????? | | ??# ##??????# #??????# #???#### #?????????? | | ??## ##???????# #??????# #????????#?????????? | | ???## ##????????# #??????# #??????????????????? | | ????# ##??????#### #??##### #??????????????????? | | ????# ######### #??# #??????????????????? | | ????# ####??# #####??????????????????? | | ????# #####=#?????# #??????????????????????? | | ????# ##### ####### #??????????????????????? | | ????## #??????????????????????? | | ?????# ###############??????????????????????? | +----------------------------------------------------+ Best States ------------- Heat Dissipation 25 Energy Generation 10 Energy Capacity 250 Matter Stores 300 Matter Capacity 300 Sight Range 16 Robot Scan Range 14 Terrain Scan Density 10 Evasion (%) 44 Item Schematics ----------------- None Robot Schematics ------------------ None Fabricated ------------ Nothing Alien Tech Used ----------------- None Achievements -------------- None Challenges ------------ None Game ------ Seed LauncherLaserScrap Manual? 0 Play Time 00:21:55 Cumulative 110.5 hours Start 2022.12.12 @ 18:52:39 End 2022.12.13 @ 13:52:55 Sessions 3 Manual Loads 0 Difficulty Rogue Special Mode None Game No. 107 Rogue 107 Adventurer 0 Explorer 0 Win Type - Total 2 Types 0/0/1/1/0/0/0/0/0 Lore% 67 Gallery% 54 Achievement% 50 Wizard Run 0 Options --------- ASCII 0 Keyboard 0 Movement Numpad Keybinds 0 Fullscreen 2 Font 18/SmallcapsGlow Map View 76x50 Tactical HUD 1 Map Filters NONE Filters NONE Steam 1 RUN: 124e7d2c-07d2-4df1-a8fa-5c335d3fc91f